bitfinex-derivatives/quotes_BTCF0:USTF0_20251111
["timestamp","ask_amount","ask_price","bid_price","bid_amount"]
[1762899628757,0.5287344,102880.0,102870.0,0.65740405]
[1762899629368,0.05849,102880.0,102870.0,0.65740405]
[1762899629771,0.05849,102880.0,102870.0,1.03052405]
[1762899631069,0.1557344,102880.0,102870.0,1.03052405]
[1762899631368,0.05849,102880.0,102870.0,1.03052405]
[1762899632066,0.1557344,102880.0,102870.0,0.36314401]
[1762899632271,0.8895344,102880.0,102870.0,0.00234401]
[1762899633475,0.8895344,102880.0,102870.0,0.00014598]
[1762899636273,0.1547533,102860.0,102850.0,0.29427204]
[1762899636470,0.5277533,102860.0,102850.0,0.29647007]
[1762899636974,0.8885533,102860.0,102850.0,0.00219803]
[1762899637477,0.5277533,102860.0,102850.0,0.29647697]
[1762899637677,0.8885533,102860.0,102850.0,0.29647697]
[1762899638280,0.8885533,102860.0,102850.0,0.29747697]
[1762899639080,0.8885533,102860.0,102850.0,0.29647697]
[1762899639281,0.8895533,102860.0,102850.0,0.29647697]
[1762899640580,0.8895533,102860.0,102850.0,0.29747697]
[1762899641279,0.8895533,102860.0,102850.0,0.00219803]
[1762899642483,0.8895533,102860.0,102850.0,0.09947083]
[1762899642687,0.8895533,102860.0,102850.0,0.00219803]
[1762899643177,0.8895533,102860.0,102850.0,0.09947083]
[1762899643781,0.8895533,102860.0,102850.0,0.00219803]
[1762899645687,0.1547628,102850.0,102840.0,0.29442852]
[1762899645884,0.5155628,102850.0,102840.0,0.29662655]
[1762899646085,0.1547628,102850.0,102840.0,0.29662655]
[1762899646884,0.1547628,102850.0,102840.0,0.41503841]
[1762899651587,0.05749,102850.0,102840.0,0.41503841]
[1762899651789,0.05788,102850.0,102840.0,0.77583841]
[1762899652984,0.05788,102850.0,102840.0,0.65751777]
[1762899654885,0.05788,102850.0,102840.0,0.46042041]
[1762899655092,0.05788,102850.0,102840.0,0.65751777]
[1762899656692,0.03512,102850.0,102840.0,0.65751777]
[1762899657293,0.05788,102850.0,102840.0,0.65751777]
[1762899657891,0.05788,102850.0,102840.0,0.65851777]
[1762899659089,0.01369,102850.0,102840.0,0.65851777]
[1762899659294,0.05628,102860.0,102850.0,0.0972728]
[1762899659493,0.05628,102860.0,102850.0,1.02968819]
[1762899659694,0.05628,102860.0,102850.0,0.83259083]
[1762899659883,0.05628,102860.0,102850.0,1.02968819]
[1762899660190,0.14644598,102870.0,102860.0,0.0972633]
[1762899660395,0.14644598,102870.0,102860.0,0.65735869]
[1762899661695,0.05642598,102870.0,102860.0,0.65735869]
[1762899661897,0.15367988,102870.0,102860.0,0.65735869]
[1762899663598,0.24368988,102870.0,102860.0,0.65735869]
[1762899665899,0.14643598,102870.0,102860.0,0.65735869]
[1762899666400,0.10384598,102870.0,102860.0,0.65735869]
[1762899667300,0.12513598,102870.0,102860.0,0.65735869]
[1762899667602,0.12613598,102870.0,102860.0,0.65735869]
[1762899668300,0.12513598,102870.0,102860.0,0.65735869]
[1762899668896,0.14643598,102870.0,102860.0,0.65735869]
[1762899670207,0.12513598,102870.0,102860.0,0.65735869]
[1762899670504,0.14643598,102870.0,102860.0,0.65735869]
[1762899670803,0.10384598,102870.0,102860.0,0.65735869]
[1762899672402,0.12513598,102870.0,102860.0,0.65735869]
[1762899672900,0.12513598,102870.0,102860.0,0.93303478]
[1762899674299,0.09015598,102870.0,102860.0,0.93303478]
[1762899674602,0.01369,102880.0,102870.0,0.0972539]
[1762899674799,0.01369,102880.0,102870.0,0.98984308]
[1762899674993,0.03498,102880.0,102870.0,0.98984308]
[1762899675799,0.01369,102880.0,102870.0,0.98984308]
[1762899676806,0.05628,102880.0,102870.0,0.98984308]
[1762899677006,0.05628,102880.0,102870.0,1.14743423]
[1762899680801,0.1535244,102880.0,102870.0,1.05014033]
[1762899681205,0.1535244,102880.0,102870.0,0.89246918]
[1762899681407,0.1535244,102880.0,102870.0,0.15978918]
[1762899681706,0.1535244,102880.0,102870.0,1.14735423]
[1762899683012,0.1535244,102880.0,102870.0,0.53170918]
[1762899684115,0.1535244,102880.0,102870.0,0.62896308]
[1762899684313,0.1535244,102880.0,102870.0,0.53170918]
[1762899685014,0.1545244,102880.0,102870.0,0.53170918]
[1762899685214,0.1545244,102880.0,102870.0,0.62896308]
[1762899685612,0.1545244,102880.0,102870.0,0.53170918]
[1762899686513,0.1545244,102880.0,102870.0,0.15978918]
[1762899687016,0.5153244,102880.0,102870.0,0.15982032]
[1762899687217,0.5153244,102880.0,102870.0,0.25707422]
[1762899687614,0.5153244,102880.0,102870.0,0.15982032]
[1762899688112,0.5153244,102880.0,102870.0,0.25707422]
[1762899688314,0.5153244,102880.0,102870.0,0.15982032]
[1762899689014,0.5153244,102880.0,102870.0,0.25707422]
[1762899690222,0.5153244,102880.0,102870.0,0.00219803]
[1762899690414,0.5153244,102880.0,102870.0,0.15982032]
[1762899690612,0.8872444,102880.0,102870.0,0.15982032]
[1762899690912,0.8872444,102880.0,102870.0,0.25707422]
[1762899691520,0.5264444,102880.0,102870.0,0.25707422]
[1762899691815,0.5153244,102880.0,102870.0,0.25707422]
[1762899692018,0.8871644,102880.0,102870.0,0.25707422]
[1762899692219,0.8871644,102880.0,102870.0,0.15982032]
[1762899692423,0.8871644,102880.0,102870.0,0.09945193]
[1762899692614,0.8871644,102880.0,102870.0,0.00219803]
[1762899692918,0.8871644,102880.0,102860.0,0.61582427]
[1762899693127,0.1552439,102870.0,102860.0,0.6180223]
[1762899693424,0.1552439,102870.0,102860.0,0.00234401]
[1762899693820,0.5160439,102870.0,102860.0,0.00234401]
[1762899695327,0.5170439,102870.0,102860.0,0.00234401]
[1762899696323,0.5170439,102870.0,102860.0,0.1599663]
[1762899696823,0.5190439,102870.0,102860.0,0.1599663]
[1762899697427,0.5190439,102870.0,102860.0,0.2572297]
[1762899699227,0.5180439,102870.0,102860.0,0.2572297]
[1762899699719,0.5160439,102870.0,102860.0,0.2572297]
[1762899699925,0.5170439,102870.0,102860.0,0.2572297]
[1762899704520,0.5170439,102870.0,102860.0,0.1599663]
[1762899705528,0.5170439,102870.0,102860.0,0.2572297]
[1762899706931,0.5170439,102870.0,102860.0,0.09960741]
[1762899707134,0.5170439,102870.0,102860.0,0.2572297]
[1762899708930,0.51850925,102870.0,102860.0,0.254962]
[1762899711545,0.06045535,102870.0,102860.0,0.254962]
[1762899712241,0.15770925,102870.0,102860.0,0.254962]
[1762899712428,0.06045535,102870.0,102860.0,0.254962]
[1762899712629,0.06045535,102870.0,102860.0,0.615762]
[1762899713438,0.15770925,102870.0,102860.0,0.615762]
[1762899713735,0.06045535,102870.0,102860.0,0.615762]
[1762899714336,0.06045535,102870.0,102860.0,0.45813971]
[1762899714537,0.06045535,102870.0,102860.0,0.615762]
[1762899714834,0.05945535,102870.0,102860.0,0.615762]
[1762899716538,0.15670925,102870.0,102860.0,0.615762]
[1762899718135,0.05945535,102870.0,102860.0,0.615762]
[1762899721838,0.15670925,102870.0,102860.0,0.615762]
[1762899722242,0.05945535,102870.0,102860.0,0.615762]
[1762899722752,0.05945535,102870.0,102860.0,0.986882]
[1762899723950,0.05945535,102870.0,102860.0,1.14450429]
[1762899724155,0.05945535,102870.0,102860.0,0.986882]
[1762899725346,0.67513154,102870.0,102860.0,7.631e-05]
[1762899725550,0.0585,102860.0,102850.0,0.00014598]
[1762899725750,0.06069803,102860.0,102850.0,0.25577374]
[1762899726048,0.37348,102900.0,102890.0,0.097235]
[1762899726244,0.01268,102900.0,102890.0,1.54701225]
[1762899726446,0.03599,102900.0,102890.0,1.78997225]
[1762899726651,0.01268,102900.0,102890.0,1.78997225]
[1762899727156,0.01268,102900.0,102890.0,1.38938996]
[1762899727346,0.01268,102900.0,102890.0,1.63234996]
[1762899727551,0.01268,102900.0,102890.0,1.78997225]
[1762899728055,0.01487803,102900.0,102890.0,1.78997225]
[1762899728255,0.01748,102910.0,102890.0,1.14701225]
[1762899728450,0.04298803,102910.0,102900.0,0.77327018]
[1762899728655,0.06549803,102910.0,102900.0,0.77400285]
[1762899730850,0.01748,102910.0,102900.0,1.01696285]
[1762899731053,0.01748,102910.0,102900.0,0.70171827]
[1762899731253,0.06549803,102910.0,102900.0,0.67677725]
[1762899731654,0.00478594,102930.0,102900.0,0.97963397]
[1762899731849,0.06548397,102930.0,102920.0,0.4580067]
[1762899732049,0.06548397,102930.0,102920.0,0.61636166]
[1762899733346,0.06063643,102930.0,102920.0,0.61636166]
[1762899735764,0.06063643,102930.0,102920.0,0.61156166]
[1762899737663,0.06063643,102930.0,102920.0,0.76918395]
[1762899738155,0.05578889,102930.0,102920.0,0.76918395]
[1762899739563,0.03327889,102930.0,102920.0,0.76918395]
[1762899739964,0.01359,102940.0,102930.0,0.0971972]
[1762899740164,0.06056803,102940.0,102930.0,0.83216987]
[1762899740356,0.06056803,102940.0,102930.0,1.14741445]
[1762899740553,0.06056803,102940.0,102930.0,1.14261445]
[1762899740753,0.06056803,102940.0,102930.0,0.76917445]
[1762899740960,0.06056803,102940.0,102930.0,1.14261445]
[1762899742167,0.01359,102940.0,102930.0,1.14361445]
[1762899742657,0.03537,102940.0,102930.0,1.14361445]
[1762899743060,0.03052246,102940.0,102930.0,1.14361445]
[1762899743260,0.05572049,102940.0,102930.0,0.82836987]
[1762899743461,0.05572049,102940.0,102930.0,1.14361445]
[1762899743671,0.05572049,102940.0,102930.0,1.14261445]
[1762899743858,0.03052246,102940.0,102930.0,1.14261445]
[1762899744058,0.00874246,102940.0,102930.0,1.14261445]
[1762899744265,0.00874246,102940.0,102930.0,1.14361445]
[1762899744464,0.03926,102950.0,102940.0,0.0971878]
[1762899744665,0.06226,102950.0,102940.0,0.61634276]
[1762899745368,0.06226,102950.0,102940.0,0.61154276]
[1762899745764,0.06445803,102950.0,102940.0,0.61154276]
[1762899747772,0.05961049,102950.0,102940.0,0.61154276]
[1762899748369,0.05961049,102950.0,102940.0,0.45392047]
[1762899748574,0.15678889,102950.0,102940.0,0.61634276]
[1762899748774,0.15678889,102950.0,102940.0,0.00073267]
[1762899748973,0.15678889,102950.0,102940.0,0.15814953]
[1762899749366,0.15678889,102950.0,102940.0,0.31556639]
[1762899749563,0.15678889,102950.0,102940.0,0.15814953]
[1762899749768,0.51758889,102950.0,102940.0,0.15814953]
[1762899750167,0.51274322,102950.0,102940.0,0.15814953]
[1762899750570,0.51854322,102950.0,102940.0,0.15814953]
[1762899751276,0.52054322,102950.0,102940.0,0.15814953]
[1762899751471,0.52054322,102950.0,102940.0,0.25533733]
[1762899751873,0.52054322,102950.0,102940.0,0.41275419]
[1762899753072,0.52054322,102950.0,102940.0,0.40795419]
[1762899753266,0.89390322,102950.0,102940.0,0.40795419]
[1762899754372,0.89390322,102950.0,102940.0,0.31076639]
[1762899755476,0.88905568,102950.0,102940.0,0.15741686]
[1762899756179,0.1555578,102940.0,102930.0,0.09733638]
[1762899756374,0.15775583,102940.0,102930.0,0.25475324]
[1762899757480,0.15875583,102940.0,102930.0,0.25475324]
[1762899757880,0.15875583,102940.0,102930.0,0.24995324]
[1762899758680,0.51955583,102940.0,102930.0,0.24995324]
[1762899760182,0.42236803,102940.0,102930.0,0.24995324]
[1762899760372,0.15875583,102940.0,102930.0,0.45333638]
[1762899760683,0.15875583,102940.0,102930.0,0.24995324]
[1762899761083,0.15875583,102940.0,102930.0,0.61075324]
[1762899761381,0.15875583,102940.0,102930.0,0.7681701]
[1762899762078,0.06156803,102940.0,102930.0,0.7681701]
[1762899762274,0.06156803,102940.0,102930.0,0.45333638]
[1762899762479,0.06156803,102940.0,102930.0,0.7681701]
[1762899762681,0.06156803,102940.0,102930.0,0.7633701]
[1762899763177,0.06056803,102940.0,102930.0,0.7633701]
[1762899764878,0.05572049,102940.0,102930.0,0.7633701]
[1762899766180,0.05572049,102940.0,102930.0,0.7643701]
[1762899766978,0.05572049,102940.0,102930.0,0.7633701]
[1762899767282,0.00788523,102950.0,102940.0,0.0923878]
[1762899767488,0.05266523,102950.0,102940.0,1.29811838]
[1762899767682,0.05486326,102950.0,102940.0,1.14070152]
[1762899767887,0.05486326,102950.0,102940.0,1.29811838]
[1762899768590,0.00788523,102950.0,102940.0,1.29811838]
[1762899769184,0.00788523,102950.0,102940.0,0.8258678]
[1762899769391,0.00788523,102950.0,102940.0,1.29811838]
[1762899769785,0.02481769,102950.0,102940.0,1.29811838]
[1762899770089,0.03791769,102950.0,102940.0,1.29811838]
[1762899770686,0.06249572,102950.0,102940.0,1.29811838]
[1762899771084,0.06249572,102950.0,102940.0,1.14074152]
[1762899771285,0.06249572,102950.0,102940.0,1.29815838]
[1762899772090,0.06249572,102950.0,102940.0,1.29335838]
[1762899772585,0.04004572,102950.0,102940.0,1.29335838]
[1762899772788,0.06242572,102950.0,102940.0,1.29335838]
[1762899772984,0.06242572,102950.0,102940.0,1.13594152]
[1762899773190,0.06242572,102950.0,102940.0,1.29335838]
[1762899773392,0.01613769,102950.0,102940.0,1.29335838]
[1762899774291,0.03784769,102950.0,102940.0,1.29335838]
[1762899774493,0.01129015,102950.0,102940.0,1.29335838]
[1762899774794,0.03300015,102950.0,102940.0,1.29335838]
[1762899775093,0.05538015,102950.0,102940.0,1.29335838]
[1762899775497,0.05757818,102950.0,102940.0,1.29335838]
[1762899776085,0.05757818,102950.0,102940.0,1.13594152]
[1762899776588,0.03519818,102950.0,102940.0,1.29335838]
[1762899776992,0.03035251,102950.0,102940.0,1.29335838]
[1762899777190,0.03295448,102950.0,102940.0,1.29335838]
[1762899778003,0.05753251,102950.0,102940.0,1.29335838]
[1762899778706,0.05753251,102950.0,102940.0,0.8211078]
[1762899779006,0.05753251,102950.0,102940.0,1.13594152]
[1762899779311,0.01344251,102950.0,102940.0,1.29335838]
[1762899779504,0.05835251,102950.0,102940.0,1.28855838]
[1762899779807,0.03602251,102950.0,102940.0,1.28855838]
[1762899780407,0.01344251,102950.0,102940.0,1.28855838]
[1762899780603,0.0048,102950.0,102940.0,1.53139838]
[1762899780803,0.01268,102960.0,102950.0,0.0971784]
[1762899781012,0.01487803,102960.0,102950.0,0.77281212]
[1762899781201,0.05978803,102960.0,102950.0,0.4579784]
[1762899781397,0.05978803,102960.0,102950.0,0.77281212]
[1762899781802,0.05494049,102960.0,102950.0,0.77281212]
[1762899782003,0.05594049,102960.0,102950.0,0.77281212]
[1762899782204,0.05109482,102960.0,102950.0,0.77281212]
[1762899782618,0.00618482,102960.0,102950.0,0.77281212]
[1762899782806,0.02876482,102960.0,102950.0,0.77281212]
[1762899783412,0.00618482,102960.0,102950.0,0.77281212]
[1762899783607,0.02876482,102960.0,102950.0,0.77281212]
[1762899783806,0.05109482,102960.0,102950.0,0.77281212]
[1762899786517,0.05109482,102960.0,102950.0,0.76801212]
[1762899786812,0.001,102960.0,102950.0,0.92062898]
[1762899787114,0.00092369,102960.0,102950.0,0.92062898]
[1762899787511,0.0585,102980.0,102970.0,0.0971594]
[1762899787716,0.06069803,102980.0,102970.0,0.98733626]
[1762899788610,0.06569803,102980.0,102970.0,0.98733626]
[1762899789012,0.005,102980.0,102970.0,0.98733626]
[1762899789208,0.00015246,102980.0,102970.0,1.90572998]
[1762899789506,0.01392679,102990.0,102970.0,1.90572998]
[1762899789716,0.06103482,102990.0,102980.0,0.93020058]
[1762899790316,0.00010679,102990.0,102980.0,0.93020058]
[1762899791216,0.03650679,102990.0,102980.0,0.93020058]
[1762899791411,0.03650679,102990.0,102980.0,0.93120058]
[1762899791613,0.01392679,102990.0,102980.0,0.93120058]
[1762899792017,0.01382,103000.0,102980.0,1.16916058]
[1762899792217,0.05873,103010.0,103000.0,0.0971311]
[1762899792513,0.06092803,103010.0,103000.0,0.93018168]
[1762899792715,0.0364,103010.0,103000.0,0.93018168]
[1762899793113,0.06092803,103010.0,103000.0,0.93018168]
[1762899793322,0.05873,103020.0,103010.0,0.0971217]
[1762899793524,0.15804033,103020.0,103010.0,0.68739372]
[1762899793815,0.15804033,103020.0,103010.0,1.04819372]
[1762899794017,0.05873,103010.0,103000.0,0.61534756]
[1762899794313,0.06092803,103010.0,103000.0,0.98786756]
[1762899794510,0.05608049,103010.0,103000.0,0.98786756]
[1762899794711,0.05223482,103010.0,103000.0,0.98786756]
[1762899794910,0.04739103,103010.0,103000.0,0.98786756]
[1762899795119,0.04639103,103010.0,103000.0,0.98786756]
[1762899795319,0.04639103,103010.0,103000.0,1.14528442]
[1762899795519,0.04639103,103010.0,103000.0,1.30258128]
[1762899795917,0.04639103,103010.0,103000.0,1.30358128]
[1762899796520,0.02406103,103010.0,103000.0,1.30358128]
[1762899796820,0.02406103,103010.0,103000.0,1.30458128]
[1762899797119,0.02406103,103010.0,103000.0,0.92738128]
[1762899797320,0.04639103,103010.0,103000.0,1.13756442]
[1762899797519,0.04639103,103010.0,103000.0,1.29018128]
[1762899799820,0.01601803,103010.0,103000.0,1.29018128]
[1762899800020,0.05782,103020.0,103010.0,0.1001217]
[1762899800220,0.05517236,103020.0,103010.0,0.77575542]
[1762899800415,0.05032857,103020.0,103010.0,0.77575542]
[1762899801516,0.0623,103030.0,103020.0,0.02238]
[1762899801715,0.06449803,103030.0,103020.0,0.3608]
[1762899801915,0.0575,103020.0,103010.0,0.01133598]
[1762899802121,0.42049803,103020.0,103010.0,0.02252598]
[1762899802320,0.42049803,103020.0,103010.0,0.17994284]
[1762899802521,0.42049803,103020.0,103010.0,0.16875284]
[1762899802522,0.51761033,103020.0,103010.0,0.16875284]
[1762899802716,0.51761033,103020.0,103010.0,0.15741686]
[1762899803018,0.0575,103010.0,103000.0,0.53313686]
[1762899803318,0.05969803,103010.0,103000.0,0.53313686]
[1762899803523,0.05969803,103010.0,103000.0,0.63026796]
[1762899804120,0.05969803,103010.0,103000.0,0.4728511]
[1762899804319,0.51761973,103010.0,103000.0,0.15841686]
[1762899804920,0.67503659,103010.0,103000.0,0.15841686]
[1762899805421,0.67018905,103010.0,103000.0,0.002]
[1762899805622,0.66534338,103010.0,103000.0,0.15941686]
[1762899805817,0.66534338,103010.0,103000.0,0.15841686]
[1762899805818,0.50308273,103010.0,103000.0,0.15841686]
[1762899806018,0.51658273,103010.0,103000.0,0.25554796]
[1762899806218,0.51658273,103010.0,103000.0,0.15841686]
[1762899806516,0.51658273,103010.0,103000.0,0.25554796]
[1762899806712,0.51658273,103010.0,103000.0,0.0981311]
[1762899806912,0.51658273,103010.0,103000.0,0.15841686]
[1762899807114,0.51658273,103010.0,103000.0,0.25554796]
[1762899807625,0.51658273,103010.0,103000.0,0.15841686]
[1762899808015,0.51658273,103010.0,103000.0,0.15261686]
[1762899808219,0.51658273,103010.0,103000.0,0.14781686]
[1762899808418,0.51658273,103010.0,103000.0,0.14301686]
[1762899808622,0.51758273,103010.0,103000.0,0.14301686]
[1762899808821,0.51758273,103010.0,102990.0,0.2545257]
[1762899809024,0.0575,103000.0,102990.0,0.2774857]
[1762899809219,0.05969803,103000.0,102990.0,0.2774857]
[1762899809422,0.05969803,103000.0,102990.0,0.79552952]
[1762899809717,0.05969803,103000.0,102990.0,1.16756952]
[1762899810830,0.05558316,103000.0,102990.0,1.16976755]
[1762899811124,0.05073749,103000.0,102990.0,1.16976755]
[1762899811316,0.0458937,103000.0,102990.0,1.16976755]
[1762899813525,0.0458937,103000.0,102990.0,1.16980755]
[1762899814927,0.0458937,103000.0,102990.0,1.17080755]
[1762899815125,0.41844598,103020.0,103010.0,0.0399]
[1762899815426,0.51629095,103020.0,103010.0,0.01641803]
[1762899815633,0.51629095,103020.0,103010.0,0.03063803]
[1762899815838,0.51629095,103020.0,103010.0,0.00219803]
[1762899816024,0.0575,103010.0,103000.0,0.2829609]
[1762899816224,0.41903267,103010.0,103000.0,0.28515893]
[1762899816722,0.05823267,103010.0,103000.0,0.64595893]
[1762899817430,0.00073267,103010.0,103000.0,0.64595893]
[1762899817724,0.01564598,103020.0,103000.0,0.64595893]
[1762899817725,0.05553111,103020.0,103010.0,0.1255617]
[1762899817922,0.05553111,103020.0,103010.0,0.64580355]
[1762899818228,0.05453111,103020.0,103010.0,0.64580355]
[1762899818424,0.05353111,103020.0,103010.0,0.64580355]
[1762899820229,0.04868544,103020.0,103010.0,0.64580355]
[1762899820431,0.04384165,103020.0,103010.0,0.64580355]
[1762899821330,0.05734165,103020.0,103010.0,0.64580355]
[1762899822718,0.15445395,103020.0,103010.0,0.64580355]
[1762899822924,0.05734165,103020.0,103010.0,0.64100355]
[1762899823121,0.15445395,103020.0,103010.0,0.54388185]
[1762899823425,0.15445395,103020.0,103010.0,0.27540355]
[1762899823633,0.15445395,103020.0,103010.0,0.28407355]
[1762899824733,0.15545395,103020.0,103010.0,0.28407355]
[1762899824940,0.15645395,103020.0,103010.0,0.28407355]
[1762899825636,0.15645395,103020.0,103010.0,0.12682973]
[1762899825827,0.51725395,103020.0,103010.0,0.00219803]
[1762899826135,0.51240641,103020.0,103010.0,0.02051803]
[1762899826330,0.50756074,103020.0,103010.0,0.03883803]
[1762899826537,0.87948074,103020.0,103010.0,0.00219803]
[1762899826729,0.87463695,103020.0,103010.0,0.00219803]
[1762899826929,0.87359272,103020.0,103010.0,0.00219803]
[1762899827136,0.87359272,103020.0,103010.0,0.12190973]
[1762899827330,0.87359272,103020.0,103010.0,0.14401973]
[1762899829037,0.87579075,103020.0,103010.0,0.1399524]
[1762899829239,0.87579075,103020.0,103010.0,0.1351524]
[1762899829441,0.87579075,103020.0,103010.0,0.1303524]
[1762899831843,0.87579075,103020.0,103010.0,0.28759622]
[1762899832341,0.87579075,103020.0,103010.0,0.1303524]
[1762899832542,0.87579075,103020.0,103010.0,0.28759622]
[1762899832936,0.87579075,103020.0,103010.0,0.20267649]
[1762899833141,0.87579075,103020.0,103010.0,0.29979819]
[1762899833742,0.87094321,103020.0,103010.0,0.29979819]
[1762899833936,0.88868754,103020.0,103010.0,0.29979819]
[1762899834242,0.88384375,103020.0,103010.0,0.29979819]
[1762899835144,0.88384375,103020.0,103010.0,0.20267649]
[1762899835534,0.88384375,103020.0,103010.0,0.02328267]
[1762899835739,0.88384375,103020.0,103010.0,0.04526267]
[1762899836346,0.88384375,103020.0,103010.0,0.04046267]
[1762899836646,0.05752,103000.0,102990.0,0.65971442]
[1762899836844,0.05971803,103000.0,102990.0,0.65971442]
[1762899837044,0.04582803,103000.0,102990.0,0.83093824]
[1762899837737,0.04582803,103000.0,102990.0,0.83193824]
[1762899838138,0.04582803,103000.0,102990.0,0.83293824]
[1762899839145,0.04098049,103000.0,102990.0,0.83293824]
[1762899839546,0.03613482,103000.0,102990.0,0.83293824]
[1762899839748,0.03129103,103000.0,102990.0,0.83293824]
[1762899840050,0.00219803,103000.0,102990.0,0.83293824]
[1762899840848,0.04521598,103010.0,103000.0,0.1548711]
[1762899841050,0.04741401,103010.0,103000.0,1.04427492]
[1762899842042,0.04741401,103010.0,103000.0,1.03947492]
[1762899842245,0.06078401,103010.0,103000.0,1.03467492]
[1762899842449,0.06078401,103010.0,103000.0,1.02987492]
[1762899843652,0.15790571,103010.0,103000.0,1.02987492]
[1762899844348,0.15790571,103010.0,103000.0,0.56180382]
[1762899844553,0.15790571,103010.0,103000.0,0.57224382]
[1762899844753,0.04741401,103010.0,103000.0,1.03749492]
[1762899844949,0.04256647,103010.0,103000.0,1.03749492]
[1762899845144,0.0377208,103010.0,103000.0,1.03749492]
[1762899845339,0.1482125,103010.0,103000.0,1.03749492]
[1762899845545,0.1482125,103010.0,103000.0,0.66625492]
[1762899846049,0.0510908,103010.0,103000.0,0.66625492]
[1762899846446,0.0377208,103010.0,103000.0,0.66625492]
[1762899847651,0.14336871,103010.0,103000.0,0.40456]
[1762899847852,0.14336871,103010.0,103000.0,0.04376]
[1762899848346,0.14336871,103010.0,103000.0,0.1408911]
[1762899850354,0.14336871,103010.0,103000.0,0.29813492]
[1762899850750,0.50416871,103010.0,103000.0,0.1408911]
[1762899852457,0.50416871,103010.0,103000.0,0.1360911]
[1762899852663,0.50416871,103010.0,103000.0,0.1312911]
[1762899852851,0.50416871,103010.0,103000.0,0.1264911]
[1762899853350,0.50416871,103010.0,103000.0,0.28373492]
[1762899854061,0.50416871,103010.0,103000.0,0.65851492]
[1762899854062,0.01007701,103010.0,103000.0,0.65851492]
[1762899854258,0.03287701,103010.0,103000.0,0.65851492]
[1762899854561,0.0048,103030.0,103020.0,0.1498723]
[1762899854858,0.00553267,103030.0,103020.0,1.55907797]
[1762899855258,0.00068513,103030.0,103020.0,1.55907797]
[1762899855560,0.05844,103050.0,103040.0,0.1408534]
[1762899855759,0.05912513,103050.0,103040.0,0.66109525]
[1762899856963,0.06212513,103050.0,103040.0,0.66109525]
[1762899857157,0.06312513,103050.0,103040.0,0.66109525]
[1762899857662,0.16020913,103050.0,103040.0,0.66109525]
[1762899858158,0.05827946,103050.0,103040.0,0.66109525]
[1762899858559,0.15051967,103050.0,103040.0,0.50385143]
[1762899858764,0.15051967,103050.0,103040.0,0.66109525]
[1762899860762,0.05343567,103050.0,103040.0,0.50385143]
[1762899861062,0.04859376,103050.0,103040.0,0.66109525]
[1762899861257,0.15884776,103050.0,103040.0,0.65629525]
[1762899861573,0.15884776,103050.0,103040.0,0.64669525]
[1762899861764,0.06176376,103050.0,103040.0,0.64669525]
[1762899862466,0.15884776,103050.0,103040.0,0.64669525]
[1762899863862,0.15884776,103050.0,103040.0,0.64189525]
[1762899864271,0.15400022,103050.0,103040.0,0.64189525]
[1762899864771,0.14431076,103050.0,103040.0,0.64189525]
[1762899866773,0.14431076,103050.0,103040.0,0.65460525]
[1762899867174,0.13946885,103050.0,103040.0,0.64980525]
[1762899867376,0.13946885,103050.0,103040.0,0.66752525]
[1762899867669,0.04238485,103050.0,103040.0,0.66752525]
[1762899868271,0.02921485,103050.0,103040.0,1.02832525]
[1762899869068,0.00468513,103050.0,103040.0,1.39952525]
[1762899869969,0.004,103050.0,103040.0,1.39952525]
[1762899870170,0.0053204,103050.0,103040.0,1.39952525]
[1762899870570,0.00566773,103050.0,103040.0,1.39952525]
[1762899871078,0.00566773,103050.0,103040.0,1.72329892]
[1762899871376,0.05072,103070.0,103060.0,0.1454146]
[1762899871577,0.05140513,103070.0,103060.0,1.19360371]
[1762899871771,0.14847033,103070.0,103060.0,1.19360371]
[1762899872373,0.05140513,103070.0,103060.0,1.19360371]
[1762899872679,0.05240513,103070.0,103060.0,1.55440371]
[1762899872869,0.05340513,103070.0,103060.0,1.55440371]
[1762899873070,0.00748513,103070.0,103060.0,1.55440371]
[1762899873270,0.03012513,103070.0,103060.0,1.55440371]
[1762899873474,0.12719033,103070.0,103060.0,1.55440371]
[1762899873672,0.03012513,103070.0,103060.0,1.54960371]
[1762899873873,0.14562279,103070.0,103060.0,1.54960371]
[1762899874078,0.14077712,103070.0,103060.0,1.54960371]
[1762899874480,0.13593333,103070.0,103060.0,1.54960371]
[1762899874779,0.30613887,103070.0,103060.0,0.92663357]
[1762899874973,0.30613887,103070.0,103060.0,0.55555357]
[1762899874974,0.14910333,103070.0,103060.0,0.55555357]
[1762899875179,0.66693887,103070.0,103060.0,0.00219803]
[1762899875568,0.1561646,103060.0,103050.0,0.20230152]
[1762899875872,0.1561646,103060.0,103050.0,0.20449955]
[1762899876783,0.14648265,103060.0,103050.0,0.04846401]
[1762899877079,0.14648265,103060.0,103050.0,0.20069955]
[1762899877380,0.14648265,103060.0,103050.0,0.03886401]
[1762899877575,0.30351819,103060.0,103050.0,0.04831803]
[1762899877775,0.4758372,103070.0,103050.0,0.04831803]
[1762899877776,0.06389,103070.0,103060.0,0.1421946]
[1762899877972,0.06389,103070.0,103060.0,0.81926371]
[1762899878968,0.06389,103070.0,103060.0,0.70148326]
[1762899879679,0.1609552,103070.0,103060.0,0.69188326]
[1762899879881,0.06389,103070.0,103060.0,0.69188326]
[1762899880081,0.05904246,103070.0,103060.0,0.69188326]
[1762899880281,0.05419679,103070.0,103060.0,0.69188326]
[1762899881684,0.15126199,103070.0,103060.0,0.69188326]
[1762899881884,0.05419679,103070.0,103060.0,0.69188326]
[1762899882183,0.15126199,103070.0,103060.0,0.69188326]
[1762899882584,0.049353,103070.0,103060.0,0.69188326]
[1762899882878,0.04451109,103070.0,103060.0,0.69188326]
[1762899883384,0.14157629,103070.0,103060.0,0.69188326]
[1762899883781,0.14157629,103070.0,103060.0,0.49559263]
[1762899884472,0.51305629,103070.0,103060.0,0.39851803]
[1762899884884,0.51405629,103070.0,103060.0,0.39851803]
[1762899885477,0.50921625,103070.0,103060.0,0.39851803]
[1762899885679,0.1561646,103060.0,103050.0,0.50054601]
[1762899885878,0.15836263,103060.0,103050.0,0.50127868]
[1762899888091,0.15836263,103060.0,103050.0,0.49167868]
[1762899888388,0.15836263,103060.0,103050.0,0.48687868]
[1762899888586,0.15351509,103060.0,103050.0,0.48687868]
[1762899889693,0.15351509,103060.0,103050.0,0.14308265]
[1762899889991,0.15351509,103060.0,103050.0,0.02339865]
[1762899890293,0.51431509,103060.0,103050.0,0.00087865]
[1762899890685,0.51431509,103060.0,103050.0,0.02303865]
[1762899890885,0.51046942,103060.0,103050.0,0.02303865]
[1762899891090,0.50562563,103060.0,103050.0,0.02303865]
[1762899891289,0.50078372,103060.0,103050.0,0.02303865]
[1762899891585,0.155684,103050.0,103040.0,0.141199]
[1762899891781,0.1556934,103040.0,103030.0,0.5020129]
[1762899891978,0.15789143,103040.0,103030.0,0.5020129]
[1762899893691,0.15789143,103040.0,103030.0,0.4972129]
[1762899893891,0.15789143,103040.0,103030.0,0.4924129]
[1762899894094,0.15789143,103040.0,103030.0,0.4876129]
[1762899894293,0.15304389,103040.0,103030.0,0.4876129]
[1762899894492,0.15404389,103040.0,103030.0,0.4876129]